bitfinex-derivatives/quotes_BTCF0:USTF0_20250729
["timestamp","ask_amount","ask_price","bid_price","bid_amount"]
[1753804278327,1.4744914,117520.0,117510.0,0.8938058]
[1753804278512,0.7630914,117520.0,117510.0,0.8938058]
[1753804278712,1.4744114,117520.0,117510.0,0.7236]
[1753804279218,0.5790113,117520.0,117510.0,1.23584188]
[1753804279417,0.40882,117520.0,117510.0,1.23584188]
[1753804279818,0.5790114,117520.0,117510.0,1.23584188]
[1753804280019,0.6580814,117520.0,117510.0,1.23584188]
[1753804280327,0.4191,117520.0,117510.0,1.23584188]
[1753804280520,0.3379514,117520.0,117510.0,1.23584188]
[1753804280724,0.12,117520.0,117510.0,1.23584188]
[1753804280924,0.12,117520.0,117510.0,1.29689097]
[1753804281615,0.170165,117540.0,117530.0,0.2127035]
[1753804281818,0.247925,117540.0,117530.0,1.98761958]
[1753804282021,0.07776,117540.0,117530.0,1.98761958]
[1753804282528,0.03,117540.0,117530.0,2.07631921]
[1753804282728,0.03,117540.0,117530.0,2.49647921]
[1753804283226,0.0074756,117540.0,117530.0,2.43543012]
[1753804283525,0.3978916,117570.0,117560.0,0.1701334]
[1753804283725,0.5001616,117570.0,117560.0,1.94496948]
[1753804284025,0.5689516,117570.0,117560.0,1.94496948]
[1753804284229,0.5689516,117570.0,117560.0,0.7216]
[1753804284519,0.5689516,117570.0,117560.0,0.3608]
[1753804284728,0.4589535,117560.0,117550.0,1.2420679]
[1753804285029,0.5889535,117560.0,117550.0,1.2420679]
[1753804285726,0.5889535,117560.0,117550.0,1.6028679]
[1753804286122,0.5889535,117560.0,117550.0,0.3608]
[1753804286325,0.2977654,117550.0,117540.0,0.3608]
[1753804286532,0.4589824,117540.0,117530.0,1.41492879]
[1753804286829,0.5589824,117540.0,117530.0,0.44098879]
[1753804288029,0.5589825,117540.0,117530.0,1.68296569]
[1753804288231,0.38882,117540.0,117530.0,1.96385436]
[1753804288436,0.5589825,117540.0,117530.0,1.96385436]
[1753804288621,0.5589825,117540.0,117530.0,1.62181828]
[1753804289026,0.5589825,117540.0,117530.0,1.62381828]
[1753804289233,0.5589825,117540.0,117530.0,1.96585436]
[1753804289534,0.5589825,117540.0,117530.0,1.96485436]
[1753804289735,0.5589825,117540.0,117530.0,1.96473436]
[1753804290731,0.38882,117540.0,117530.0,1.96473436]
[1753804290923,0.1,117540.0,117530.0,2.02588177]
[1753804292137,0.1,117540.0,117530.0,2.19604177]
[1753804292328,0.1,117540.0,117530.0,2.19591892]
[1753804292525,0.5061223,117570.0,117560.0,0.1701335]
[1753804292526,0.2604141,117570.0,117560.0,0.1701335]
[1753804292729,0.3704141,117570.0,117560.0,1.94456958]
[1753804293424,0.5426841,117570.0,117560.0,1.94456958]
[1753804293630,0.6114741,117570.0,117560.0,1.94456958]
[1753804294939,0.6114741,117570.0,117560.0,0.8917335]
[1753804295139,0.6114741,117570.0,117560.0,0.3608]
[1753804295339,0.6114741,117570.0,117560.0,0.5309335]
[1753804296841,0.6114741,117570.0,117560.0,0.3608]
[1753804297039,0.4589535,117560.0,117550.0,0.01884038]
[1753804297242,0.5789535,117560.0,117550.0,0.01884038]
[1753804299945,0.7630335,117560.0,117550.0,0.01884038]
[1753804301337,1.10506958,117560.0,117550.0,0.01884038]
[1753804301537,1.46586958,117560.0,117550.0,0.01884038]
[1753804301944,0.6430624,117540.0,117530.0,0.42194741]
[1753804302243,1.4734624,117540.0,117530.0,0.42194741]
[1753804302443,1.2893824,117540.0,117530.0,0.59212421]
[1753804303046,0.5789824,117540.0,117530.0,0.59212421]
[1753804303246,0.5789824,117540.0,117530.0,0.59312421]
[1753804303449,0.5789824,117540.0,117530.0,0.93516029]
[1753804303943,0.5789824,117540.0,117530.0,0.87401288]
[1753804304344,0.3379223,117540.0,117530.0,0.87401288]
[1753804304544,0.96070838,117540.0,117530.0,0.001]
[1753804304740,0.96070838,117540.0,117510.0,0.3608]
[1753804304741,0.4505159,117510.0,117500.0,0.42194741]
[1753804304946,1.2808359,117510.0,117500.0,0.3608]
[1753804305143,0.1702204,117500.0,117490.0,0.12946782]
[1753804305343,0.5805304,117500.0,117490.0,0.42919645]
[1753804305549,0.5805304,117500.0,117490.0,0.3608]
[1753804305750,0.5805304,117500.0,117490.0,0.5310348]
[1753804306243,1.2908104,117500.0,117490.0,0.5310348]
[1753804306843,1.2908104,117500.0,117490.0,0.3638]
[1753804307048,1.2908104,117500.0,117490.0,0.003]
[1753804307550,1.2908104,117500.0,117490.0,0.5340348]
[1753804307946,1.2908104,117500.0,117490.0,0.5360348]
[1753804308141,1.2908104,117500.0,117490.0,0.005]
[1753804308454,1.98364648,117500.0,117490.0,0.005]
[1753804310147,1.98364648,117500.0,117490.0,0.004]
[1753804310346,1.98360648,117500.0,117490.0,0.004]
[1753804311150,0.1702784,117460.0,117450.0,0.63515285]
[1753804311352,0.5705884,117460.0,117450.0,0.55000875]
[1753804311650,0.5705884,117460.0,117450.0,0.55001815]
[1753804311855,0.5705884,117460.0,117450.0,0.37972535]
[1753804312454,0.5705884,117460.0,117450.0,0.55001815]
[1753804313253,1.2808284,117460.0,117450.0,0.89605423]
[1753804313453,1.2808284,117460.0,117450.0,0.55401815]
[1753804313656,1.2808284,117460.0,117450.0,0.55401835]
[1753804313848,1.2808284,117460.0,117450.0,0.38372535]
[1753804314043,1.2808284,117460.0,117450.0,0.55401835]
[1753804314857,1.2808284,117460.0,117450.0,0.38772535]
[1753804315150,1.2808284,117460.0,117450.0,0.55801835]
[1753804317559,1.62286448,117460.0,117450.0,0.02692535]
[1753804317759,1.98366448,117460.0,117450.0,0.02692535]
[1753804318247,1.2808284,117460.0,117450.0,0.02692535]
[1753804318452,1.62286448,117460.0,117450.0,0.02692535]
[1753804318855,1.62286448,117460.0,117450.0,0.02492535]
[1753804319054,2.15394449,117460.0,117450.0,0.02492535]
[1753804319659,2.15394449,117460.0,117450.0,0.02292535]
[1753804320252,0.1703075,117440.0,117430.0,0.3608]
[1753804320459,1.4860675,117440.0,117430.0,0.3608]
[1753804320662,0.7757875,117440.0,117430.0,0.170322]
[1753804320861,0.7757875,117440.0,117420.0,0.03148]
[1753804320862,0.645802,117430.0,117420.0,0.03148]
[1753804321061,0.6458165,117420.0,117410.0,0.40267]
[1753804321259,1.4760165,117420.0,117410.0,0.40267]
[1753804321464,1.4760165,117420.0,117410.0,0.39628]
[1753804321662,0.170351,117410.0,117400.0,10.59307357]
[1753804321862,1.30568,117410.0,117400.0,10.59707357]
[1753804322060,0.59548,117410.0,117400.0,10.60557357]
[1753804322262,0.765831,117410.0,117400.0,10.60557357]
[1753804323261,0.765831,117410.0,117400.0,10.94360965]
[1753804323470,0.765831,117410.0,117400.0,10.94760965]
[1753804323767,0.765831,117410.0,117400.0,10.97044965]
[1753804323965,0.12,117410.0,117400.0,10.97144965]
[1753804324159,0.12,117410.0,117400.0,11.68164965]
[1753804324366,0.12,117410.0,117400.0,11.85200165]
[1753804324669,0.12,117410.0,117400.0,11.85300165]
[1753804326562,0.0620449,117410.0,117400.0,12.17231479]
[1753804326762,1e-07,117410.0,117400.0,12.17231479]
[1753804328867,0.04972,117450.0,117440.0,0.2980331]
[1753804329075,0.17972,117450.0,117440.0,2.07178918]
[1753804329566,0.13,117450.0,117440.0,2.07178918]
[1753804330264,0.135,117450.0,117440.0,2.07178918]
[1753804331271,0.18472,117450.0,117440.0,2.07178918]
[1753804331460,0.3550128,117450.0,117440.0,2.07166918]
[1753804331665,0.18472,117450.0,117440.0,2.07166918]
[1753804332266,0.18472,117450.0,117440.0,2.08005082]
[1753804332466,0.18472,117450.0,117440.0,2.07166918]
[1753804332670,0.135,117450.0,117440.0,2.24196518]
[1753804333066,0.133,117450.0,117440.0,2.24196518]
[1753804333373,0.134,117450.0,117440.0,2.24196518]
[1753804333573,0.18072,117450.0,117440.0,2.24184518]
[1753804333873,0.18272,117450.0,117440.0,2.24184518]
[1753804334073,0.18272,117450.0,117440.0,2.07154918]
[1753804334269,0.3530129,117450.0,117440.0,1.31909348]
[1753804334463,0.7748629,117450.0,117440.0,1.6017473]
[1753804335067,0.7748629,117450.0,117440.0,1.94374338]
[1753804335361,0.7748629,117450.0,117440.0,0.70976]
[1753804335567,0.6401574,117440.0,117430.0,0.7940169]
[1753804335872,0.7601574,117440.0,117430.0,1.5037769]
[1753804337571,0.7601574,117440.0,117430.0,1.84581298]
[1753804337970,0.7601574,117440.0,117430.0,1.85431298]
[1753804338169,0.7631574,117440.0,117430.0,1.85431298]
[1753804339969,0.36069,117440.0,117430.0,1.85431298]
[1753804340162,0.123,117440.0,117430.0,1.59141298]
[1753804340572,0.4519521,117470.0,117460.0,0.1702784]
[1753804340779,0.10736839,117470.0,117460.0,1.94347448]
[1753804341075,0.2593839,117470.0,117460.0,1.94347448]
[1753804341471,0.08912,117470.0,117460.0,1.94347448]
[1753804341667,0.2593839,117470.0,117460.0,1.94347448]
[1753804341872,0.2633839,117470.0,117460.0,1.94347448]
[1753804342271,0.09312,117470.0,117460.0,1.94347448]
[1753804342464,0.044,117470.0,117460.0,1.94347448]
[1753804342865,0.046,117470.0,117460.0,1.94347448]
[1753804343977,0.09512,117470.0,117460.0,1.96226043]
[1753804345474,0.2653839,117470.0,117460.0,0.91066435]
[1753804345678,0.4975439,117470.0,117460.0,1.61998435]
[1753804345879,0.4975439,117470.0,117460.0,0.37958595]
[1753804346179,0.4975439,117470.0,117460.0,0.3608]
[1753804346380,0.1702784,117460.0,117450.0,1.07008]
[1753804346580,0.4236584,117460.0,117450.0,1.2403729]
[1753804346780,0.5815584,117460.0,117450.0,1.2403729]
[1753804346977,0.3493983,117460.0,117450.0,1.94320898]
[1753804347479,0.13,117460.0,117450.0,1.96233765]
[1753804347882,0.13,117460.0,117450.0,2.02340902]
[1753804348077,0.13,117460.0,117450.0,2.19368902]
[1753804348278,0.132,117460.0,117450.0,2.13261765]
[1753804348480,0.002,117470.0,117460.0,0.1702783]
[1753804348681,0.032,117470.0,117460.0,1.58227438]
[1753804348875,0.032,117470.0,117460.0,1.75253838]
[1753804349072,0.04912,117500.0,117490.0,0.1702349]
[1753804349282,0.04912,117500.0,117490.0,1.94303098]
[1753804349283,0.14912,117500.0,117490.0,1.94303098]
[1753804349483,0.1,117500.0,117490.0,1.94303098]
[1753804349882,0.14912,117500.0,117490.0,1.94303098]
[1753804351486,0.15012,117500.0,117490.0,1.94303098]
[1753804351687,0.15012,117500.0,117490.0,2.01210461]
[1753804352280,0.15112,117500.0,117490.0,2.01210461]
[1753804355386,0.3213414,117500.0,117490.0,2.01210461]
[1753804356488,0.4792414,117500.0,117490.0,2.01210461]
[1753804356986,0.30902,117500.0,117490.0,2.01210461]
[1753804357387,0.15112,117500.0,117490.0,2.01210461]
[1753804358295,0.3213414,117500.0,117490.0,2.01210461]
[1753804358493,0.15112,117500.0,117490.0,2.01210461]
[1753804358986,0.15112,117500.0,117490.0,1.67006853]
[1753804359187,0.15112,117500.0,117490.0,2.01210461]
[1753804359989,0.102,117500.0,117490.0,2.01210461]
[1753804360697,0.15112,117500.0,117490.0,2.01210461]
[1753804361389,0.3213416,117500.0,117490.0,1.30294461]
[1753804361589,0.3213416,117500.0,117490.0,2.01142461]
[1753804361791,0.30902,117500.0,117490.0,2.01142461]
[1753804362094,0.15112,117500.0,117490.0,2.01142461]
[1753804364792,0.3213416,117500.0,117490.0,2.01142461]
[1753804364992,0.7378616,117500.0,117490.0,2.01142461]
[1753804365492,0.7378616,117500.0,117490.0,1.66914853]
[1753804366592,0.7378616,117500.0,117490.0,2.01118461]
[1753804367098,0.7378616,117500.0,117490.0,0.96090853]
[1753804367299,0.7378616,117500.0,117490.0,1.66906853]
[1753804367701,0.56764,117500.0,117490.0,0.96090853]
[1753804368001,0.7378616,117500.0,117490.0,1.66906853]
[1753804368296,0.7378616,117500.0,117490.0,2.01110461]
[1753804368501,0.56764,117500.0,117490.0,2.01110461]
[1753804369497,0.7378616,117500.0,117490.0,2.01110461]
[1753804369997,0.56764,117500.0,117490.0,2.01110461]
[1753804370197,0.102,117500.0,117490.0,2.01110461]
[1753804371405,0.102,117500.0,117490.0,2.07217598]
[1753804371598,0.101,117500.0,117490.0,2.07217598]
[1753804371801,0.21895,117530.0,117520.0,0.1701926]
[1753804372096,0.12895,117530.0,117520.0,1.94178868]
[1753804372501,0.08,117530.0,117520.0,1.94178868]
[1753804373301,0.12895,117530.0,117520.0,1.94178868]
[1753804373798,0.081,117530.0,117520.0,1.94178868]
[1753804374194,0.081,117530.0,117520.0,2.00286005]
[1753804374393,0.081,117530.0,117520.0,1.94178868]
[1753804375102,0.12995,117530.0,117520.0,1.94178868]
[1753804378498,0.28301,117530.0,117520.0,1.94178868]
[1753804379604,0.12995,117530.0,117520.0,1.94178868]
[1753804380606,0.0935458,117530.0,117520.0,1.94178868]
[1753804380794,0.0935458,117530.0,117520.0,1.23382868]
[1753804380999,0.5112558,117530.0,117520.0,1.94126868]
[1753804381701,0.4370558,117530.0,117520.0,1.94126868]
[1753804382199,0.0935458,117530.0,117520.0,1.94126868]
[1753804383302,0.0935458,117530.0,117520.0,1.94226868]
[1753804387498,0.0506136,117530.0,117520.0,1.23482868]
[1753804387706,0.26088,117560.0,117550.0,0.1701492]
[1753804388012,0.59666,117560.0,117550.0,1.94090528]
[1753804388212,0.58816,117560.0,117550.0,1.94090528]
[1753804388409,0.7582947,117560.0,117550.0,1.23378528]
[1753804388710,0.7582947,117560.0,117550.0,1.5988292]
[1753804389012,0.76770382,117560.0,117550.0,1.66823924]
[1753804389214,0.58916,117560.0,117550.0,1.66823924]
[1753804389400,0.58916,117560.0,117550.0,2.01027532]
[1753804389711,0.58916,117560.0,117550.0,2.01877532]
[1753804390611,0.58816,117560.0,117550.0,2.01877532]
[1753804391410,0.58816,117560.0,117550.0,2.01977532]
[1753804391611,0.58816,117560.0,117550.0,2.01127532]
[1753804392512,0.58816,117560.0,117550.0,2.01977532]
[1753804392710,0.21996,117560.0,117550.0,2.02809693]
[1753804392910,0.17045,117560.0,117550.0,2.02809693]
[1753804393410,0.13,117560.0,117550.0,2.02809693]
[1753804394805,0.1073174,117560.0,117550.0,2.02809693]
[1753804395515,0.025718,117560.0,117550.0,2.02809693]
[1753804397111,0.0040715,117560.0,117550.0,2.02809693]
[1753804397517,0.0040715,117560.0,117550.0,2.0891683]
[1753804397712,0.41355,117590.0,117580.0,0.1701058]
[1753804397906,0.60477,117590.0,117580.0,1.95402188]
[1753804398111,0.60477,117590.0,117580.0,1.96252188]
[1753804398412,0.60477,117590.0,117580.0,1.95402188]
[1753804399518,0.60577,117590.0,117580.0,1.95402188]
[1753804400218,0.60477,117590.0,117580.0,1.95402188]
[1753804400417,0.60577,117590.0,117580.0,1.95402188]
[1753804400620,0.60577,117590.0,117580.0,1.96252188]
[1753804401020,0.131,117590.0,117580.0,1.96252188]
[1753804401318,0.18089,117590.0,117580.0,1.96252188]
[1753804402421,0.60577,117590.0,117580.0,1.95402188]
[1753804403421,0.60577,117590.0,117580.0,1.96252188]
[1753804403816,0.131,117590.0,117580.0,1.96252188]
[1753804404022,0.18089,117590.0,117580.0,1.96252188]
[1753804404224,0.131,117590.0,117580.0,1.96252188]
[1753804404519,0.3600515,117620.0,117610.0,0.1700626]
[1753804404721,0.58477,117620.0,117610.0,1.57917868]
[1753804404922,0.11,117620.0,117610.0,1.57917868]
[1753804405630,0.111,117620.0,117610.0,1.57917868]
[1753804405930,0.16089,117620.0,117610.0,1.57917868]
[1753804406314,0.16089,117620.0,117610.0,1.58765045]
[1753804406519,0.58577,117620.0,117610.0,1.57913868]
[1753804406729,0.7558181,117620.0,117610.0,1.57913868]
[1753804406919,0.7558181,117620.0,117610.0,0.94159161]
[1753804407221,0.7558181,117620.0,117610.0,1.2369826]
[1753804407817,0.51343,117620.0,117610.0,1.57901868]
[1753804408018,0.58577,117620.0,117610.0,1.57901868]
[1753804408322,0.16089,117620.0,117610.0,1.57901868]
[1753804408525,0.16089,117620.0,117610.0,1.58770531]
[1753804408724,0.15989,117620.0,117610.0,1.58770531]
[1753804408922,0.3299381,117620.0,117610.0,1.57901868]
[1753804409231,0.7548181,117620.0,117610.0,1.57901868]
[1753804410127,0.35122,117620.0,117610.0,1.57901868]
[1753804410321,0.15989,117620.0,117610.0,1.57901868]
[1753804410724,0.15989,117620.0,117610.0,1.64602339]
[1753804411229,0.3211,117620.0,117610.0,1.64602339]
[1753804411734,0.7548181,117620.0,117610.0,1.64602339]
[1753804412116,0.7548181,117620.0,117610.0,1.2368226]
[1753804412323,0.7548181,117620.0,117610.0,1.06676]
[1753804412626,0.7548181,117620.0,117610.0,1.2368225]
[1753804414434,0.5010625,117610.0,117600.0,0.3608]
[1753804414634,0.644847,117600.0,117590.0,0.01900981]
[1753804414825,0.764847,117600.0,117590.0,0.01900981]
[1753804415131,0.934919,117600.0,117590.0,0.01900981]
[1753804415332,1.890799,117600.0,117590.0,0.01900981]
[1753804415627,1.890799,117600.0,117570.0,0.3608]
[1753804415628,0.6874054,117580.0,117570.0,0.3608]
[1753804415827,0.7974054,117580.0,117570.0,0.3608]
[1753804416221,0.7974054,117580.0,117570.0,0.5309204]
[1753804416423,0.80606953,117580.0,117570.0,0.5309204]
[1753804416623,1.51194953,117580.0,117570.0,0.5309204]
[1753804418634,0.7984054,117580.0,117570.0,0.5309204]
[1753804419426,0.4049454,117580.0,117570.0,0.5309204]
[1753804419734,0.7984054,117580.0,117570.0,0.5309204]
[1753804420238,0.58577,117580.0,117570.0,0.87295648]
[1753804420437,0.58477,117580.0,117570.0,0.87295648]
[1753804420737,0.7548758,117580.0,117570.0,0.87295648]
[1753804421132,0.7548758,117580.0,117570.0,0.5309204]
[1753804422134,0.7548759,117580.0,117570.0,0.5309204]
[1753804422338,0.15989,117580.0,117570.0,0.87295648]
[1753804422829,0.11,117580.0,117570.0,0.87295648]
[1753804424934,0.11,117580.0,117570.0,0.93402785]
[1753804426036,0.0001,117630.0,117620.0,0.170048]
[1753804426233,0.40112,117630.0,117620.0,1.93948408]
[1753804426441,0.5711535,117630.0,117620.0,1.597448]
[1753804426839,0.40112,117630.0,117620.0,1.597448]
[1753804427135,0.40112,117630.0,117620.0,1.23368408]
[1753804427337,0.40212,117630.0,117620.0,1.93948408]
[1753804427742,0.5721535,117630.0,117620.0,1.93948408]
[1753804429144,0.74218551,117630.0,117620.0,1.42728]
[1753804429433,0.74218551,117630.0,117620.0,0.875728]
[1753804429639,0.74218551,117630.0,117620.0,0.70568]
[1753804430436,0.451068,117620.0,117610.0,0.3608]
[1753804430636,0.581068,117620.0,117610.0,1.2365425]
[1753804430840,0.751116,117620.0,117610.0,1.2365425]
[1753804431540,0.41102,117620.0,117610.0,1.57857858]
[1753804431745,0.347448,117620.0,117610.0,1.57857858]
[1753804432132,0.1774,117620.0,117610.0,1.57857858]
[1753804432640,0.13,117620.0,117610.0,1.57857858]
[1753804432938,0.1774,117620.0,117610.0,1.57857858]
[1753804434339,0.347448,117620.0,117610.0,1.57857858]
[1753804434538,0.347448,117620.0,117610.0,0.87289858]
[1753804434740,0.347448,117620.0,117610.0,1.64633637]
[1753804435141,0.601268,117620.0,117610.0,1.64633637]
[1753804435445,0.763638,117620.0,117610.0,1.64633637]
[1753804436242,0.763638,117620.0,117610.0,1.30430029]
[1753804436444,0.763638,117620.0,117610.0,1.64633637]
[1753804438242,0.763638,117620.0,117610.0,0.59874019]
[1753804438443,0.763638,117620.0,117610.0,1.2363424]
[1753804439950,0.763638,117620.0,117610.0,1.57837848]
[1753804441350,0.763638,117620.0,117610.0,1.2363424]
[1753804441851,0.763638,117620.0,117610.0,1.57837848]
[1753804442150,0.763638,117620.0,117610.0,0.87289848]
[1753804442452,0.763638,117620.0,117610.0,1.2362624]
[1753804442654,0.763638,117620.0,117610.0,0.87289848]
[1753804442855,0.763638,117620.0,117610.0,1.2362624]
[1753804443347,0.763638,117620.0,117610.0,0.3608]
[1753804443554,0.4712824,117610.0,117600.0,0.3608]
[1753804443848,0.7536524,117610.0,117600.0,1.06616]
[1753804444648,0.7546524,117610.0,117600.0,1.06616]
[1753804444848,0.7546524,117610.0,117600.0,1.2362369]
[1753804445252,0.7546524,117610.0,117600.0,1.06616]
[1753804445854,0.7546524,117610.0,117600.0,0.5308768]
[1753804446957,0.2475568,117600.0,117590.0,0.3608]
[1753804447258,0.6336813,117590.0,117580.0,0.5734298]
[1753804447553,0.7536813,117590.0,117580.0,0.5734298]
[1753804447754,0.76216352,117590.0,117580.0,1.2787498]
[1753804448055,0.7536813,117590.0,117580.0,1.2787498]
[1753804449159,0.7536813,117590.0,117580.0,1.06616]
[1753804449356,0.7536813,117590.0,117580.0,1.2362658]
[1753804450053,0.7536813,117590.0,117580.0,1.2372658]
[1753804450753,0.7536813,117590.0,117580.0,1.2362658]
[1753804452357,0.7536813,117590.0,117580.0,1.2372658]
[1753804454049,0.7536813,117590.0,117580.0,0.5319058]
[1753804454249,0.7536813,117590.0,117580.0,1.2371858]
[1753804454459,0.7546813,117590.0,117580.0,1.2361858]
[1753804456858,0.7546813,117590.0,117580.0,1.57818188]
[1753804457559,0.7546813,117590.0,117580.0,1.2361458]
[1753804458156,0.7546813,117590.0,117570.0,1.2787236]
[1753804458157,0.3217958,117580.0,117570.0,1.2787236]
[1753804458359,0.7495658,117580.0,117570.0,1.2787236]
[1753804458559,0.7495658,117580.0,117570.0,1.2786836]
[1753804459155,0.7495658,117580.0,117570.0,1.2361559]
[1753804459458,0.7495658,117580.0,117570.0,1.06604]
[1753804459660,0.7495658,117580.0,117570.0,0.3608]
[1753804459863,1.09160188,117580.0,117570.0,0.5309203]
[1753804460163,0.7495658,117580.0,117570.0,0.5309203]
[1753804460665,1.4547658,117580.0,117570.0,0.5309203]
[1753804462363,0.7495658,117580.0,117570.0,0.5309203]
[1753804463166,0.3375858,117580.0,117570.0,0.87295638]
[1753804464057,0.16748,117580.0,117570.0,0.87295638]
[1753804464863,0.12,117580.0,117570.0,0.87395638]
[1753804465565,0.12,117580.0,117570.0,0.88258695]
[1753804465768,0.12,117580.0,117570.0,0.94465832]
[1753804465961,0.12,117580.0,117570.0,0.94565832]
[1753804466562,0.12,117580.0,117570.0,0.94465832]
[1753804466764,0.12,117580.0,117570.0,0.94565832]
[1753804467365,0.12,117580.0,117570.0,1.36576232]
[1753804467966,0.12,117580.0,117570.0,1.30469095]
[1753804468163,0.12,117580.0,117570.0,1.13100231]
[1753804468368,0.3975508,117610.0,117600.0,0.1700769]
[1753804468566,0.3275508,117610.0,117600.0,1.5967169]
[1753804468767,0.3275508,117610.0,117600.0,1.93875298]
[1753804469470,0.11,117610.0,117600.0,1.93875298]
[1753804470168,0.11,117610.0,117600.0,2.28078906]
[1753804470361,0.11,117610.0,117600.0,1.93875298]
[1753804470766,0.11,117610.0,117600.0,1.999766]
[1753804471166,0.111,117610.0,117600.0,1.999766]
[1753804472566,0.15848,117610.0,117600.0,1.999766]
[1753804473073,0.111,117610.0,117600.0,1.999766]
[1753804474474,0.15848,117610.0,117600.0,1.999766]
[1753804475272,0.111,117610.0,117600.0,1.999766]
[1753804475673,0.15848,117610.0,117600.0,1.999566]
[1753804476774,0.4082325,117610.0,117600.0,1.294726]
[1753804476975,0.7405225,117610.0,117600.0,1.65744992]
[1753804477772,0.7405225,117610.0,117600.0,1.5964369]
[1753804478570,0.7405225,117610.0,117600.0,0.891677]
[1753804478776,1.08255858,117610.0,117600.0,0.7216]
[1753804479672,0.7405225,117610.0,117600.0,0.7216]
[1753804480870,1.08255858,117610.0,117600.0,0.7216]
[1753804481074,1.4452425,117610.0,117600.0,0.7216]
[1753804481675,1.4452425,117610.0,117600.0,0.8916769]
[1753804482372,0.3285425,117610.0,117600.0,1.23371298]
[1753804482576,0.3285425,117610.0,117600.0,0.88460162]
[1753804482577,0.7405225,117610.0,117600.0,0.88460162]
[1753804483272,0.111,117610.0,117600.0,1.2266377]
[1753804483771,0.2810624,117610.0,117600.0,1.2266377]
[1753804483972,0.7395624,117610.0,117600.0,1.59016162]
[1753804484379,0.7385624,117610.0,117600.0,1.59016162]
[1753804484578,0.7385624,117610.0,117600.0,1.9321977]
[1753804485168,0.6658824,117610.0,117600.0,1.9331977]
[1753804485467,0.4071224,117610.0,117600.0,1.9331977]
[1753804485668,0.4071224,117610.0,117600.0,1.59216162]
[1753804485875,0.7385624,117610.0,117600.0,1.9341977]
[1753804486378,0.6658824,117610.0,117600.0,1.59216162]
[1753804486683,0.4071224,117610.0,117600.0,1.9341977]
[1753804487685,0.7385624,117610.0,117600.0,1.9341977]
[1753804488582,0.7385624,117610.0,117600.0,1.59216162]
[1753804488783,0.7385624,117610.0,117600.0,1.9341977]
[1753804489484,0.3274623,117610.0,117600.0,1.9341977]
[1753804491481,0.7385623,117610.0,117600.0,0.88660162]
[1753804491785,0.7385623,117610.0,117600.0,0.88660152]
[1753804492683,0.7385623,117610.0,117600.0,0.88560152]
[1753804493182,0.7395623,117610.0,117600.0,0.88460152]
[1753804493382,0.7395623,117610.0,117600.0,0.94561454]
[1753804493684,0.7395623,117610.0,117600.0,0.88460152]
[1753804494884,0.7395623,117610.0,117600.0,0.52380152]
[1753804495181,0.7395623,117610.0,117590.0,0.44093658]
[1753804495182,0.3528068,117600.0,117590.0,0.44093658]
[1753804495387,1.78533288,117600.0,117590.0,0.01912356]
[1753804495688,0.6285913,117590.0,117580.0,0.59191872]
[1753804495888,0.7585913,117590.0,117580.0,0.59191872]
[1753804496587,0.7585913,117590.0,117580.0,0.5309057]
[1753804497184,0.76715829,117590.0,117580.0,0.5309057]
[1753804497391,1.10919437,117590.0,117580.0,0.3608]
[1753804497791,0.6286059,117580.0,117570.0,0.5309203]
[1753804497981,1.4633659,117580.0,117570.0,0.59193332]
[1753804498380,1.4633659,117580.0,117570.0,0.5309203]
[1753804499491,1.4643659,117580.0,117570.0,0.3608]
[1753804499691,1.4643659,117580.0,117570.0,0.5309204]
[1753804501289,0.7596059,117580.0,117570.0,0.5309204]
[1753804501492,0.7596059,117580.0,117570.0,0.87295648]
[1753804501797,0.6869259,117580.0,117570.0,0.87295648]
[1753804501999,0.7596059,117580.0,117570.0,0.87295648]
[1753804502297,0.7596059,117580.0,117570.0,0.5309201]
[1753804502591,1.10164198,117580.0,117570.0,0.3608]
[1753804502792,0.7596059,117580.0,117570.0,0.3608]
[1753804502988,0.7596059,117580.0,117570.0,0.5309201]
[1753804503197,0.7596059,117580.0,117570.0,0.3608]
[1753804504307,1.2817159,117580.0,117570.0,0.5309202]
[1753804504505,0.5041959,117580.0,117570.0,0.87295628]
[1753804504901,0.7596059,117580.0,117570.0,0.5309202]
[1753804505699,0.7596059,117580.0,117570.0,0.3608]
[1753804505906,0.7596059,117580.0,117570.0,0.5309202]
[1753804507100,0.7596059,117580.0,117570.0,0.3608]
[1753804509702,1.10164198,117580.0,117570.0,0.3608]
[1753804510102,0.7596059,117580.0,117570.0,0.5309204]
[1753804511110,0.7596059,117580.0,117570.0,0.3608]
[1753804512709,0.7596059,117580.0,117570.0,0.5309204]
[1753804513110,0.7596059,117580.0,117570.0,0.3608]
[1753804514307,0.5895,117580.0,117560.0,0.6159893]
[1753804514505,1.3363403,117570.0,117560.0,0.6159893]
[1753804514706,1.4563403,117570.0,117560.0,0.6159893]
[1753804520917,1.4563403,117570.0,117560.0,0.85924673]
[1753804521109,1.4563403,117570.0,117560.0,0.6159893]
[1753804522311,1.4542603,117570.0,117560.0,0.6159893]
[1753804523117,1.4542603,117570.0,117560.0,0.85924673]
[1753804523717,1.4542603,117570.0,117560.0,0.6159893]
[1753804525618,1.4542603,117570.0,117560.0,0.85924673]
[1753804525819,0.7487403,117570.0,117560.0,0.85924673]
[1753804526020,1.4538203,117570.0,117560.0,0.85924673]
[1753804527825,1.4723101,117570.0,117560.0,0.85924673]
[1753804528919,1.4538203,117570.0,117560.0,0.85924673]
[1753804529222,1.4538203,117570.0,117560.0,0.6159893]
[1753804529223,1.47231382,117570.0,117560.0,0.6159893]
[1753804529416,1.47231382,117570.0,117560.0,0.85924673]
[1753804530319,0.3571056,117560.0,117550.0,0.60405743]
[1753804530522,1.00201303,117560.0,117550.0,0.5309503]
[1753804530921,0.7587556,117560.0,117550.0,0.5309503]
[1753804531523,0.7587556,117560.0,117550.0,0.5309504]
[1753804532016,0.7587556,117560.0,117550.0,0.77420783]
[1753804532324,1.4648356,117560.0,117550.0,0.77420783]
[1753804532524,1.4648356,117560.0,117550.0,0.5309504]
[1753804532725,1.4648356,117560.0,117550.0,0.77420783]
[1753804533227,1.4648356,117560.0,117550.0,0.5309503]
[1753804533726,1.4648356,117560.0,117550.0,0.77420773]
[1753804533914,1.4648356,117560.0,117550.0,0.77520773]
[1753804534618,1.4648356,117560.0,117550.0,0.77420773]
[1753804537427,1.4648356,117560.0,117550.0,0.5309503]
[1753804537627,1.4648356,117560.0,117550.0,0.77420773]
[1753804538028,0.7597556,117560.0,117550.0,0.77420773]
[1753804538229,0.7597556,117560.0,117550.0,0.5309503]
[1753804538428,0.7597556,117560.0,117550.0,0.77420773]
[1753804540018,0.7597556,117560.0,117550.0,0.77420753]
[1753804540535,0.7597556,117560.0,117550.0,0.5309501]